[Event "17th Caspian Cup-Masters 2019"]
[Site "Anzali"]
[Date "2019.02.12"]
[Round "1.3"]
[White "Pilvaieh, Ali"]
[Black "Mosadeghpour, Masoud"]
[Result "0-1"]
[ECO "D00"]
[WhiteElo "2156"]
[BlackElo "2531"]
[Annotator "RC"]
[PlyCount "102"]
[EventDate "2019.02.12"]
[EventType "swiss"]
[EventRounds "9"]
[EventCountry "IRI"]
[SourceTitle "playchess.com"]
[Source "ChessBase"]
[SourceQuality "1"]
[TimeControl "5400+30"]

1. d4 {[%emt 0:00:00]} d5 {[%emt 0:00:00]} 2. Bf4 {[%emt 0:00:00]} c5 {[%emt 0:00:00]} 3. e3 {[%emt 0:00:00]} Nc6 {[%emt 0:00:00]} 4. c3 {[%emt 0:00:06]} Bf5 {[%emt 0:00:45]} 5. Nd2 {[%emt 0:00:29]} cxd4 {[%emt 0:00:21]} 6. exd4 {[%emt 0:00:09]} e6 {[%emt 0:00:02]} 7. Ngf3 {[%emt 0:00:28]} Bd6 {[%emt 0:00:21]} 8. Bxd6 {[%emt 0:05:23]} Qxd6 {[%emt 0:00:02]} 9. Nh4 {[%emt 0:10:08]} Nge7 {[%emt 0:00:15]} 10. Nxf5 {[%emt 0:00:51]} Nxf5 {[%emt 0:00:02]} 11. Bd3 {[%emt 0:00:25]} Nfe7 {[%emt 0:00:03]} 12. O-O {[%emt 0:00:50]} O-O {[%emt 0:00:02]} 13. Re1 {[%emt 0:04:28]} a6 {[%emt 0:00:04]} 14. a4 {[%emt 0:02:25]} Rae8 {[%emt 0:00:06]} 15. Qh5 {[%emt 0:02:48]} g6 {[%emt 0:10:50]} 16. Qh3 {[%emt 0:11:46]} e5 {[%emt 0:03:25]} 17. dxe5 {[%emt 0:00:07]} Nxe5 {[%emt 0:00:02]} 18. Rad1 {[%emt 0:01:34]} N7c6 {[%emt 0:00:35]} 19. Nb3 {[%emt 0:05:55]} Nc4 {[%emt 0:01:18]} 20. Bxc4 {[%emt 0:08:33]} Rxe1+ {[%emt 0:01:44]} 21. Rxe1 {[%emt 0:00:05]} dxc4 {[%emt 0:00:02]} 22. Nc1 {[%emt 0:02:24]} Qd2 {[%emt 0:01:14]} 23. Qe3 {[%emt 0:00:02]} Qxb2 {[%emt 0:00:42]} 24. Ne2 {[%emt 0:00:15]} Rd8 {[%emt 0:00:20]} 25. Nf4 {[%emt 0:01:15]} Qd2 {[%emt 0:01:12]} 26. Qxd2 {[%emt 0:02:52]} Rxd2 {[%emt 0:00:05]} 27. h4 {[%emt 0:01:39]} Kf8 {[%emt 0:06:22]} 28. Rb1 {[%emt 0:01:55]} Na5 {[%emt 0:00:57]} 29. Rb6 {[%emt 0:04:19]} Rd1+ {[%emt 0:01:11]} 30. Kh2 {[%emt 0:00:08]} Ke7 {[%emt 0:00:08]} 31. g4 {[%emt 0:00:30]} Rd6 {[%emt 0:01:09]} 32. Rb4 {[%emt 0:02:46]} Kd7 {[%emt 0:00:10]} 33. h5 {[%emt 0:03:12]} Kc6 {[%emt 0:00:45]} 34. g5 {[%emt 0:01:34]} gxh5 {[%emt 0:00:18]} 35. Kg3 {[%emt 0:00:31]} h6 {[%emt 0:00:31]} 36. gxh6 {[%emt 0:00:47]} Rxh6 {[%emt 0:00:01]} 37. Kh4 {[%emt 0:00:36]} b5 {[%emt 0:00:33]} 38. axb5+ {[%emt 0:00:07]} axb5 {[%emt 0:00:01]} 39. Rb2 {[%emt 0:00:17]} Nb3 {[%emt 0:00:39]} 40. Nxh5 {[%emt 0:01:00]} b4 {[%emt 0:01:28]} 41. cxb4 {[%emt 0:00:39]} Kb5 {[%emt 0:00:01]} 42. Kg5 {[%emt 0:01:11]} Rg6+ {[%emt 0:00:34]} 43. Kf4 {[%emt 0:00:16]} Kxb4 {[%emt 0:00:11]} 44. Ke4 {[%emt 0:01:54]} c3 {[%emt 0:01:33]} 45. Rc2 {[%emt 0:01:54]} Nc5+ {[%emt 0:00:26]} 46. Kf5 {[%emt 0:02:25]} Kb3 {[%emt 0:01:05]} 47. Rc1 {[%emt 0:00:05]} Nd3 {[%emt 0:00:55]} 48. Rb1+ {[%emt 0:00:22]} Ka2 {[%emt 0:00:22]} 49. Rb7 {[%emt 0:01:27]} c2 {[%emt 0:00:27]} 50. Ra7+ {[%emt 0:00:20]} Kb3 {[%emt 0:00:36]} 51. Rb7+ {[%emt 0:00:28]} Nb4 {[%emt 0:01:42]} 0-1

[Event "17th Caspian Cup-Masters 2019"]
[Site "Anzali"]
[Date "2019.02.12"]
[Round "1.9"]
[White "Doostkam, P."]
[Black "Gholami Orimi, Mahdi"]
[Result "1/2-1/2"]
[ECO "A13"]
[WhiteElo "2115"]
[BlackElo "2375"]
[Annotator "NA"]
[PlyCount "97"]
[EventDate "2019.02.12"]
[EventType "swiss"]
[EventRounds "9"]
[EventCountry "IRI"]
[SourceTitle "playchess.com"]
[Source "ChessBase"]
[SourceQuality "1"]
[TimeControl "5400+30"]

1. c4 {[%emt 0:00:00]} e6 {[%emt 0:00:00]} 2. Nc3 {[%emt 0:00:51]} d5 {[%emt 0:00:00]} 3. e3 {[%emt 0:00:20]} Nf6 {[%emt 0:00:03]} 4. Nf3 {[%emt 0:00:19]} dxc4 {[%emt 0:00:25]} 5. Bxc4 {[%emt 0:00:17]} a6 {[%emt 0:00:01]} 6. a4 {[%emt 0:03:23]} b6 {[%emt 0:00:25]} 7. O-O {[%emt 0:00:47]} Bb7 {[%emt 0:00:04]} 8. d4 {[%emt 0:00:20]} Nbd7 {[%emt 0:00:02]} 9. Qe2 {[%emt 0:01:01]} Bd6 {[%emt 0:04:51]} 10. e4 {[%emt 0:09:12]} e5 {[%emt 0:01:04]} 11. Rd1 {[%emt 0:17:53]} Qe7 {[%emt 0:11:06]} 12. dxe5 {[%emt 0:07:21]} Nxe5 {[%emt 0:01:21]} 13. Nxe5 {[%emt 0:01:30]} Bxe5 {[%emt 0:00:29]} 14. Nd5 {[%emt 0:02:38]} Nxd5 {[%emt 0:01:56]} 15. Bxd5 {[%emt 0:00:23]} Bxd5 {[%emt 0:05:31]} 16. Rxd5 {[%emt 0:00:15]} O-O {[%emt 0:01:15]} 17. Be3 {[%emt 0:08:59]} Bd6 {[%emt 0:02:07]} 18. Qd3 {[%emt 0:02:47]} Rae8 {[%emt 0:03:14]} 19. Bxb6 {[%emt 0:04:36]} Qxe4 {[%emt 0:03:03]} 20. Qxe4 {[%emt 0:07:19]} Rxe4 {[%emt 0:00:05]} 21. Bc5 {[%emt 0:03:44]} Rfe8 {[%emt 0:01:47]} 22. f3 {[%emt 0:01:00]} Bxc5+ {[%emt 0:13:23]} 23. Rxc5 {[%emt 0:00:04]} Re2 {[%emt 0:00:07]} 24. Rxc7 {[%emt 0:05:18]} Rxb2 {[%emt 0:00:48]} 25. Rac1 {[%emt 0:00:34]} Ra2 {[%emt 0:00:19]} 26. Rc8 {[%emt 0:02:58]} Kf8 {[%emt 0:00:45]} 27. Rxe8+ {[%emt 0:00:53]} Kxe8 28. Rc4 {[%emt 0:00:31]} Kd7 {[%emt 0:00:20]} 29. h4 {[%emt 0:00:44]} a5 {[%emt 0:06:36]} 30. h5 {[%emt 0:01:00]} Kd6 {[%emt 0:00:36]} 31. Rf4 {[%emt 0:00:13]} Ke6 {[%emt 0:01:32]} 32. Re4+ {[%emt 0:01:20]} Kf5 {[%emt 0:00:52]} 33. Rc4 {[%emt 0:00:53]} Kf6 {[%emt 0:00:07]} 34. Rc6+ {[%emt 0:01:21]} Ke7 {[%emt 0:00:03]} 35. Rc7+ {[%emt 0:00:12]} Ke6 {[%emt 0:00:11]} 36. Rc4 {[%emt 0:01:22]} g6 {[%emt 0:01:38]} 37. h6 {[%emt 0:01:56]} Kf6 {[%emt 0:04:02]} 38. Rc6+ {[%emt 0:01:00]} Kg5 {[%emt 0:02:31]} 39. Rc5+ {[%emt 0:00:02]} Kxh6 {[%emt 0:00:54]} 40. Rxa5 {[%emt 0:00:04]} f5 {[%emt 0:00:25]} 41. Ra7 {[%emt 0:01:05]} g5 {[%emt 0:00:18]} 42. Ra6+ {[%emt 0:00:49]} Kh5 {[%emt 0:00:05]} 43. Ra7 {[%emt 0:00:18]} h6 {[%emt 0:00:29]} 44. Ra6 {[%emt 0:00:30]} g4 {[%emt 0:01:03]} 45. fxg4+ {[%emt 0:00:35]} fxg4 {[%emt 0:00:01]} 46. g3 {[%emt 0:02:31]} Kg5 {[%emt 0:00:02]} 47. Ra5+ {[%emt 0:00:14]} Kf6 {[%emt 0:00:36]} 48. Kh1 {[%emt 0:01:42]} Ke6 {[%emt 0:00:16]} 49. Kg1 {[%emt 0:00:59] Ke5} 1/2-1/2

[Event "17th Caspian Cup-Masters 2019"]
[Site "Anzali"]
[Date "2019.02.13"]
[Round "2.2"]
[White "Veisi, Bardia"]
[Black "Bernadskiy, Vitaliy"]
[Result "1/2-1/2"]
[ECO "D10"]
[WhiteElo "2243"]
[BlackElo "2570"]
[Annotator "RC"]
[PlyCount "81"]
[EventDate "2019.02.12"]
[EventType "swiss"]
[EventRounds "9"]
[EventCountry "IRI"]
[SourceTitle "playchess.com"]
[Source "ChessBase"]
[SourceQuality "1"]
[TimeControl "5400+30"]

1. d4 {[%emt 0:02:27]} d5 {[%emt 0:00:00]} 2. c4 {[%emt 0:00:07]} c6 {[%emt 0:00:00]} 3. Nc3 {[%emt 0:00:08]} Nf6 {[%emt 0:00:17]} 4. cxd5 {[%emt 0:06:16]} cxd5 {[%emt 0:00:05]} 5. Bf4 {[%emt 0:00:08]} a6 {[%emt 0:01:49]} 6. e3 {[%emt 0:00:16]} Nc6 {[%emt 0:00:10]} 7. Nf3 {[%emt 0:07:20]} Nh5 {[%emt 0:05:07]} 8. Bg5 {[%emt 0:01:23]} h6 {[%emt 0:00:16]} 9. Bh4 {[%emt 0:00:08]} g5 {[%emt 0:00:40]} 10. Nd2 {[%emt 0:00:30]} Ng7 {[%emt 0:01:13]} 11. Bg3 {[%emt 0:00:11]} Nf5 {[%emt 0:00:08]} 12. Bd3 {[%emt 0:02:53]} Bg7 {[%emt 0:01:09]} 13. Nb3 {[%emt 0:02:33]} h5 {[%emt 0:02:59]} 14. Qb1 {[%emt 0:04:32]} e6 {[%emt 0:02:17]} 15. Bxf5 {[%emt 0:01:39]} exf5 {[%emt 0:00:11]} 16. h4 {[%emt 0:01:36]} f4 {[%emt 0:01:56]} 17. exf4 {[%emt 0:01:24]} g4 18. O-O {[%emt 0:03:21]} O-O {[%emt 0:00:10]} 19. Re1 {[%emt 0:03:45]} Ne7 {[%emt 0:01:11]} 20. Rxe7 {[%emt 0:08:45]} Qxe7 {[%emt 0:00:25]} 21. Nxd5 {[%emt 0:00:27]} Qd8 {[%emt 0:01:10]} 22. Ne3 {[%emt 0:00:16]} Bxd4 {[%emt 0:04:07]} 23. Nxd4 {[%emt 0:00:19]} Qxd4 {[%emt 0:00:07]} 24. f5 {[%emt 0:00:04]} Bd7 {[%emt 0:01:11]} 25. Qc2 {[%emt 0:02:32]} Bc6 {[%emt 0:09:04]} 26. Rd1 {[%emt 0:00:47]} Qe4 {[%emt 0:00:04]} 27. Qc3 {[%emt 0:00:06]} f6 {[%emt 0:04:29]} 28. Rd6 {[%emt 0:00:48]} Qe7 {[%emt 0:03:34]} 29. Re6 {[%emt 0:04:31]} Qf7 {[%emt 0:00:11]} 30. Bd6 {[%emt 0:04:52]} Rac8 {[%emt 0:11:59]} 31. Bxf8 {[%emt 0:02:31]} Rxf8 {[%emt 0:00:20]} 32. Qd4 {[%emt 0:01:20]} Bd7 {[%emt 0:02:18]} 33. Rd6 {[%emt 0:00:16]} Bc6 {[%emt 0:00:05]} 34. Nd5 {[%emt 0:08:50]} Bxd5 {[%emt 0:00:23]} 35. Rxd5 {[%emt 0:00:06]} Re8 {[%emt 0:00:06]} 36. Rd7 {[%emt 0:01:24]} Re7 {[%emt 0:00:15]} 37. Rd8+ {[%emt 0:00:25]} Kg7 {[%emt 0:00:20]} 38. Qd6 {[%emt 0:00:06]} Rc7 {[%emt 0:00:56]} 39. Kh2 {[%emt 0:02:37]} Qe7 {[%emt 0:02:18]} 40. Qd5 {[%emt 0:01:51]} Qe5+ {[%emt 0:04:14]} 41. Qxe5 {[%emt 0:01:06]} 1/2-1/2

[Event "17th Caspian Cup-Masters 2019"]
[Site "Anzali"]
[Date "2019.02.13"]
[Round "2.7"]
[White "Danielyan, Vahe"]
[Black "Mikaelyan, Arman"]
[Result "0-1"]
[ECO "C84"]
[WhiteElo "2186"]
[BlackElo "2465"]
[Annotator "ChessBase"]
[PlyCount "140"]
[EventDate "2019.02.12"]
[EventType "swiss"]
[EventRounds "9"]
[EventCountry "IRI"]
[SourceTitle "playchess.com"]
[Source "ChessBase"]
[SourceQuality "1"]
[TimeControl "5400+30"]

1. e4 {[%emt 0:00:00]} e5 {[%emt 0:00:00]} 2. Nf3 {[%emt 0:00:00]} Nc6 {[%emt 0:00:00]} 3. Bb5 {[%emt 0:00:00]} a6 {[%emt 0:00:00]} 4. Ba4 {[%emt 0:00:00]} Nf6 {[%emt 0:00:00]} 5. O-O {[%emt 0:00:02]} Be7 {[%emt 0:00:07]} 6. d3 {[%emt 0:00:19]} b5 {[%emt 0:01:10]} 7. Bb3 {[%emt 0:00:06]} d6 {[%emt 0:00:46]} 8. a3 {[%emt 0:00:07]} O-O {[%emt 0:00:22]} 9. Nc3 {[%emt 0:00:09]} Bg4 {[%emt 0:00:50]} 10. Be3 {[%emt 0:00:06]} Nd4 {[%emt 0:00:22]} 11. Bxd4 {[%emt 0:00:10]} exd4 {[%emt 0:00:05]} 12. Nd5 {[%emt 0:00:05]} c5 {[%emt 0:00:14]} 13. a4 {[%emt 0:03:28]} b4 {[%emt 0:05:18]} 14. h3 {[%emt 0:02:13]} Be6 {[%emt 0:00:45]} 15. Re1 {[%emt 0:04:59]} Nxd5 {[%emt 0:08:00]} 16. Bxd5 {[%emt 0:00:32]} Bxd5 {[%emt 0:03:21]} 17. exd5 {[%emt 0:00:07]} Bg5 {[%emt 0:04:17]} 18. Re4 {[%emt 0:00:07]} Bh6 {[%emt 0:02:45]} 19. b3 Qf6 {[%emt 0:13:11]} 20. Nh2 {[%emt 0:23:43]} Qf5 {[%emt 0:04:49]} 21. Qf3 {[%emt 0:11:40]} Qxd5 {[%emt 0:02:21]} 22. Rae1 {[%emt 0:02:35]} Bg5 {[%emt 0:11:23]} 23. h4 {[%emt 0:02:55]} Bd8 {[%emt 0:04:15]} 24. g3 {[%emt 0:00:39]} h6 {[%emt 0:08:02]} 25. Kg2 {[%emt 0:01:41]} Rc8 {[%emt 0:05:04]} 26. Nf1 {[%emt 0:00:46]} Qc6 {[%emt 0:04:13]} 27. Nd2 {[%emt 0:01:13]} Qd7 {[%emt 0:00:07]} 28. R4e2 {[%emt 0:00:47]} Qc6 {[%emt 0:02:39]} 29. Nc4 {[%emt 0:02:04]} Qxf3+ {[%emt 0:01:14]} 30. Kxf3 {[%emt 0:00:03]} d5 {[%emt 0:00:31]} 31. Ne5 {[%emt 0:04:55]} Rc7 {[%emt 0:00:25]} 32. h5 {[%emt 0:03:33]} Bf6 {[%emt 0:01:13]} 33. Ng4 {[%emt 0:00:44]} c4 {[%emt 0:00:42]} 34. bxc4 {[%emt 0:03:36]} dxc4 {[%emt 0:00:04]} 35. Re4 {[%emt 0:00:43]} Rd8 {[%emt 0:03:24]} 36. Nxf6+ {[%emt 0:03:01]} gxf6 {[%emt 0:00:04]} 37. Rf4 {[%emt 0:00:05]} cxd3 {[%emt 0:04:53]} 38. cxd3 {[%emt 0:00:04]} b3 {[%emt 0:00:23]} 39. Rb1 {[%emt 0:00:09]} Rc3 {[%emt 0:00:38]} 40. Ke4 {[%emt 0:00:47]} Rb8 {[%emt 0:01:32]} 41. Kxd4 {[%emt 0:03:34]} Rc2 {[%emt 0:00:03]} 42. Ke3 {[%emt 0:04:05]} b2 {[%emt 0:00:03]} 43. Rc4 {[%emt 0:00:51]} Re8+ {[%emt 0:00:03]} 44. Re4 {[%emt 0:02:37]} Kf8 {[%emt 0:00:36]} 45. f3 {[%emt 0:00:19]} Re6 {[%emt 0:03:27]} 46. g4 {[%emt 0:00:58]} Ke7 {[%emt 0:00:26]} 47. a5 {[%emt 0:01:26]} Kd6 {[%emt 0:00:23]} 48. Kf4 {[%emt 0:01:17]} Kc5 {[%emt 0:02:04]} 49. Kf5 {[%emt 0:01:10]} Rxe4 {[%emt 0:02:37]} 50. dxe4 {[%emt 0:00:25]} Kb4 {[%emt 0:00:41]} 51. Kxf6 {[%emt 0:00:45]} Kxa5 {[%emt 0:01:12]} 52. Kxf7 {[%emt 0:02:33]} Kb4 {[%emt 0:02:04]} 53. e5 {[%emt 0:00:57]} Kb3 {[%emt 0:01:41]} 54. e6 {[%emt 0:00:05]} Rf2 {[%emt 0:01:09]} 55. g5 {[%emt 0:00:52]} Rxf3+ {[%emt 0:00:25]} 56. Kg6 {[%emt 0:01:03]} Re3 {[%emt 0:00:36]} 57. Kf5 {[%emt 0:00:19]} Rf3+ {[%emt 0:00:32]} 58. Ke4 {[%emt 0:01:29]} Rf8 {[%emt 0:00:21]} 59. g6 {[%emt 0:00:32]} a5 {[%emt 0:00:15]} 60. g7 {[%emt 0:02:06]} Ra8 {[%emt 0:00:31]} 61. Ke5 {[%emt 0:01:53]} a4 {[%emt 0:00:09]} 62. Rg1 {[%emt 0:00:01]} a3 {[%emt 0:01:14]} 63. g8=Q {[%emt 0:00:53]} Rxg8 {[%emt 0:00:03]} 64. Rxg8 {[%emt 0:00:03]} a2 {[%emt 0:00:13]} 65. Rb8+ {[%emt 0:01:22]} Kc4 {[%emt 0:00:26]} 66. Rc8+ {[%emt 0:00:24]} Kd3 {[%emt 0:00:20]} 67. Rd8+ {[%emt 0:00:19]} Ke3 {[%emt 0:00:58]} 68. e7 {[%emt 0:00:22]} b1=Q {[%emt 0:00:08]} 69. e8=Q {[%emt 0:00:05]} Qe4+ {[%emt 0:00:47]} 70. Kd6 {[%emt 0:01:20]} a1=Q {[%emt 0:00:05]} 0-1

[Event "17th Caspian Cup-Masters 2019"]
[Site "Anzali"]
[Date "2019.02.13"]
[Round "2.8"]
[White "Atakhan, Abtin"]
[Black "Pour Agha Bala, Amirreza"]
[Result "1/2-1/2"]
[ECO "A15"]
[WhiteElo "2179"]
[BlackElo "2362"]
[Annotator "NA"]
[PlyCount "89"]
[EventDate "2019.02.12"]
[EventType "swiss"]
[EventRounds "9"]
[EventCountry "IRI"]
[SourceTitle "playchess.com"]
[Source "ChessBase"]
[SourceQuality "1"]
[TimeControl "5400+30"]

1. c4 {[%emt 0:00:00]} Nf6 {[%emt 0:00:00]} 2. Nf3 {[%emt 0:00:00]} g6 {[%emt 0:00:00]} 3. b4 {[%emt 0:00:00]} Bg7 {[%emt 0:01:01]} 4. Bb2 {[%emt 0:00:00]} O-O {[%emt 0:00:07]} 5. g3 {[%emt 0:00:00]} d6 {[%emt 0:03:15]} 6. Bg2 {[%emt 0:00:02]} e5 {[%emt 0:00:29]} 7. d3 {[%emt 0:00:26]} Re8 {[%emt 0:02:58]} 8. Nfd2 {[%emt 0:04:25]} c6 {[%emt 0:02:37]} 9. O-O {[%emt 0:01:46]} a5 {[%emt 0:08:05]} 10. a3 {[%emt 0:04:56]} axb4 {[%emt 0:03:00]} 11. axb4 {[%emt 0:00:02]} Rxa1 {[%emt 0:00:28]} 12. Bxa1 {[%emt 0:00:02]} Qb6 {[%emt 0:02:48]} 13. Qa4 {[%emt 0:08:04]} Na6 {[%emt 0:02:24]} 14. Bc3 d5 {[%emt 0:09:43]} 15. cxd5 {[%emt 0:04:12]} cxd5 {[%emt 0:00:19]} 16. Bxd5 {[%emt 0:00:38]} Bd7 {[%emt 0:00:18]} 17. Qb3 {[%emt 0:00:50]} Nxd5 {[%emt 0:00:09]} 18. Qxd5 {[%emt 0:00:01]} Bh3 {[%emt 0:07:27]} 19. Nc4 {[%emt 0:02:14]} Qc7 {[%emt 0:00:16]} 20. Rc1 {[%emt 0:01:05]} Rd8 {[%emt 0:05:41]} 21. Qa5 {[%emt 0:01:31]} Qc8 {[%emt 0:04:47]} 22. Nbd2 {[%emt 0:20:37]} Qa8 {[%emt 0:09:25]} 23. Qb6 {[%emt 0:07:06]} Rc8 {[%emt 0:01:38]} 24. b5 {[%emt 0:08:24]} Nc7 {[%emt 0:01:34]} 25. Ra1 {[%emt 0:04:35]} Qb8 {[%emt 0:00:06]} 26. e4 {[%emt 0:05:21]} Ne6 {[%emt 0:03:05]} 27. Nf3 {[%emt 0:02:54]} Rd8 {[%emt 0:04:38]} 28. Qe3 {[%emt 0:05:24]} Nd4 {[%emt 0:06:23]} 29. Bxd4 {[%emt 0:00:31]} exd4 {[%emt 0:00:01]} 30. Qe1 {[%emt 0:02:37]} Be6 {[%emt 0:00:27]} 31. Nfd2 {[%emt 0:00:13]} h5 {[%emt 0:01:11]} 32. f4 {[%emt 0:01:39]} f5 {[%emt 0:01:30]} 33. e5 {[%emt 0:02:46]} Qc7 {[%emt 0:00:54]} 34. Rc1 {[%emt 0:02:03]} Qc5 {[%emt 0:03:00]} 35. Rb1 {[%emt 0:04:18]} Bf8 {[%emt 0:04:18]} 36. h4 {[%emt 0:00:36]} Ra8 {[%emt 0:03:23]} 37. Rb2 {[%emt 0:01:16]} Bd7 {[%emt 0:00:30]} 38. Qb1 {[%emt 0:02:08]} Be7 {[%emt 0:00:49]} 39. Kh2 {[%emt 0:01:16]} Kg7 {[%emt 0:00:45]} 40. Kg1 {[%emt 0:02:19]} Ra7 {[%emt 0:05:17]} 41. Nb3 {[%emt 0:01:42]} Qxb5 {[%emt 0:02:06]} 42. Nba5 {[%emt 0:00:15]} Qa4 {[%emt 0:01:29]} 43. Ra2 {[%emt 0:00:07]} Qb4 {[%emt 0:00:29]} 44. Rb2 {[%emt 0:00:16]} Qa4 {[%emt 0:00:43]} 45. Ra2 {[%emt 0:01:00]} 1/2-1/2

[Event "17th Caspian Cup-Masters 2019"]
[Site "Anzali"]
[Date "2019.02.13"]
[Round "2.9"]
[White "Daghli, Arash"]
[Black "Babaniya, Benyamin"]
[Result "1-0"]
[ECO "A14"]
[WhiteElo "2354"]
[BlackElo "2184"]
[Annotator "NA"]
[PlyCount "65"]
[EventDate "2019.02.12"]
[EventType "swiss"]
[EventRounds "9"]
[EventCountry "IRI"]
[SourceTitle "playchess.com"]
[Source "ChessBase"]
[SourceQuality "1"]
[TimeControl "5400+30"]

1. Nf3 Nf6 {[%emt 0:03:41]} 2. c4 {[%emt 0:00:00]} e6 {[%emt 0:00:39]} 3. g3 {[%emt 0:00:27]} d5 {[%emt 0:00:17]} 4. Bg2 {[%emt 0:00:10]} Be7 {[%emt 0:00:08]} 5. O-O {[%emt 0:00:23]} O-O {[%emt 0:00:09]} 6. b3 {[%emt 0:00:05]} b6 {[%emt 0:09:57]} 7. Bb2 {[%emt 0:00:35]} Bb7 {[%emt 0:02:00]} 8. e3 {[%emt 0:00:30]} Nbd7 {[%emt 0:01:34]} 9. Nc3 {[%emt 0:00:54]} c5 {[%emt 0:12:56]} 10. Qe2 {[%emt 0:00:40]} Rc8 {[%emt 0:01:54]} 11. Rad1 {[%emt 0:10:55]} Qc7 12. Nh4 {[%emt 0:08:53]} dxc4 {[%emt 0:11:05]} 13. bxc4 {[%emt 0:00:10]} Bxg2 {[%emt 0:00:17]} 14. Nxg2 {[%emt 0:00:01]} Rfd8 {[%emt 0:07:33]} 15. d3 {[%emt 0:00:57]} Nb8 {[%emt 0:04:07]} 16. f4 {[%emt 0:00:25]} Nc6 {[%emt 0:00:51]} 17. g4 {[%emt 0:00:10]} Ne8 {[%emt 0:02:59]} 18. h4 {[%emt 0:07:50]} Qd7 {[%emt 0:04:15]} 19. a3 {[%emt 0:06:03]} a6 {[%emt 0:03:08]} 20. h5 {[%emt 0:04:24]} f6 {[%emt 0:11:25]} 21. f5 {[%emt 0:07:14]} h6 {[%emt 0:02:34]} 22. Nf4 {[%emt 0:18:38]} Nc7 {[%emt 0:01:27]} 23. fxe6 {[%emt 0:06:51]} Nxe6 {[%emt 0:00:05]} 24. Ncd5 {[%emt 0:00:31]} Rb8 {[%emt 0:05:09]} 25. Ng6 {[%emt 0:01:55]} Nc7 {[%emt 0:00:08]} 26. Rf5 {[%emt 0:03:37]} Nxd5 {[%emt 0:04:57]} 27. cxd5 {[%emt 0:02:04]} Na7 {[%emt 0:00:45]} 28. e4 {[%emt 0:01:51]} Bd6 {[%emt 0:01:27]} 29. Rdf1 {[%emt 0:02:18]} Nc8 {[%emt 0:00:34]} 30. g5 {[%emt 0:00:45]} hxg5 {[%emt 0:01:29]} 31. h6 {[%emt 0:00:30]} Ne7 {[%emt 0:00:52]} 32. h7+ {[%emt 0:00:25]} Kf7 {[%emt 0:03:50]} 33. Rxf6+ {[%emt 0:00:17]} 1-0

[Event "17th Caspian Cup-Masters 2019"]
[Site "Anzali"]
[Date "2019.02.15"]
[Round "4.6"]
[White "Asgari, Morteza"]
[Black "Mikaelyan, Arman"]
[Result "1/2-1/2"]
[ECO "C95"]
[WhiteElo "2175"]
[BlackElo "2465"]
[Annotator "ChessBase"]
[PlyCount "112"]
[EventDate "2019.02.12"]
[EventType "swiss"]
[EventRounds "9"]
[EventCountry "IRI"]
[SourceTitle "playchess.com"]
[Source "ChessBase"]
[SourceQuality "1"]
[TimeControl "5400+30"]

1. e4 {[%emt 0:00:00]} e5 {[%emt 0:00:00]} 2. Nf3 {[%emt 0:00:00]} Nc6 {[%emt 0:00:00]} 3. Bb5 {[%emt 0:00:00]} a6 {[%emt 0:00:00]} 4. Ba4 {[%emt 0:00:00]} Nf6 {[%emt 0:00:00]} 5. O-O {[%emt 0:00:06]} Be7 {[%emt 0:00:00]} 6. Re1 {[%emt 0:00:04]} b5 {[%emt 0:00:04]} 7. Bb3 {[%emt 0:00:06]} d6 {[%emt 0:00:05]} 8. c3 {[%emt 0:00:05]} O-O {[%emt 0:00:07]} 9. h3 {[%emt 0:00:02]} Nb8 {[%emt 0:00:17]} 10. d4 {[%emt 0:00:11]} Nbd7 {[%emt 0:00:07]} 11. Nbd2 {[%emt 0:00:07]} Bb7 {[%emt 0:00:07]} 12. Bc2 {[%emt 0:00:12]} Re8 {[%emt 0:00:18]} 13. Nf1 {[%emt 0:00:23]} Bf8 {[%emt 0:00:23]} 14. Ng3 {[%emt 0:00:08]} g6 {[%emt 0:00:45]} 15. a4 {[%emt 0:00:14]} c6 {[%emt 0:00:29]} 16. b3 {[%emt 0:08:26]} Qc7 {[%emt 0:01:01]} 17. Bg5 {[%emt 0:15:13]} h6 {[%emt 0:01:07]} 18. Be3 {[%emt 0:00:10]} Rad8 {[%emt 0:00:42]} 19. axb5 {[%emt 0:00:31]} cxb5 {[%emt 0:00:34]} 20. Qd2 {[%emt 0:06:00]} Rc8 {[%emt 0:00:06]} 21. c4 {[%emt 0:08:23]} Kh7 {[%emt 0:05:05]} 22. d5 {[%emt 0:03:39]} bxc4 {[%emt 0:02:07]} 23. bxc4 {[%emt 0:00:09]} Nb6 {[%emt 0:01:31]} 24. Bd3 {[%emt 0:11:08]} Nxc4 {[%emt 0:04:37]} 25. Bxc4 {[%emt 0:03:31]} Qxc4 {[%emt 0:00:10]} 26. Rec1 {[%emt 0:00:20]} Qb5 {[%emt 0:00:36]} 27. Rcb1 {[%emt 0:00:48]} Qd7 {[%emt 0:00:04]} 28. Qb4 {[%emt 0:00:47]} Re7 {[%emt 0:05:36]} 29. Nd2 {[%emt 0:02:11]} Qc7 {[%emt 0:16:26]} 30. Rc1 {[%emt 0:01:53]} Qxc1+ {[%emt 0:01:41]} 31. Rxc1 {[%emt 0:00:03]} Rxc1+ {[%emt 0:00:06]} 32. Kh2 {[%emt 0:00:28]} Rec7 {[%emt 0:01:26]} 33. Bb6 {[%emt 0:03:03]} Rc8 {[%emt 0:02:23]} 34. Be3 {[%emt 0:04:22]} Ba8 {[%emt 0:01:03]} 35. Qa4 {[%emt 0:00:58]} h5 {[%emt 0:00:49]} 36. Nf3 {[%emt 0:01:30]} R1c2 {[%emt 0:04:20]} 37. Qxa6 {[%emt 0:08:52]} Nd7 {[%emt 0:00:34]} 38. Qa4 {[%emt 0:03:07]} R2c7 {[%emt 0:00:29]} 39. Qd1 {[%emt 0:00:02]} Kg8 {[%emt 0:01:40]} 40. Nh4 {[%emt 0:03:06]} Nf6 {[%emt 0:01:39]} 41. Qf3 {[%emt 0:00:21]} Nh7 {[%emt 0:01:03]} 42. Nxh5 {[%emt 0:01:22]} gxh5 {[%emt 0:00:57]} 43. Qxh5 {[%emt 0:00:15]} Kh8 {[%emt 0:02:55]} 44. g4 {[%emt 0:02:49]} Bb7 {[%emt 0:02:55]} 45. g5 {[%emt 0:02:32]} Kg8 {[%emt 0:01:43]} 46. Nf5 {[%emt 0:00:59]} Rd8 {[%emt 0:05:56]} 47. h4 {[%emt 0:01:26]} Rc4 {[%emt 0:08:18]} 48. Qf3 {[%emt 0:11:07]} Bc8 {[%emt 0:07:30]} 49. h5 {[%emt 0:00:20]} Rd7 {[%emt 0:01:02]} 50. Kg2 {[%emt 0:02:34]} Rc3 {[%emt 0:09:44]} 51. Qg4 {[%emt 0:00:40]} Rb7 {[%emt 0:00:36]} 52. g6 {[%emt 0:00:37]} fxg6 {[%emt 0:00:21]} 53. Qxg6+ {[%emt 0:00:37]} Kh8 {[%emt 0:00:08]} 54. Nxd6 {[%emt 0:00:19]} Rg7 {[%emt 0:03:26]} 55. Nf7+ {[%emt 0:00:03]} Kg8 {[%emt 0:00:03]} 56. Nh6+ {[%emt 0:00:12]} Kh8 {[%emt 0:00:03]} 1/2-1/2